bitfinex/quotes_BTCUSD_20240828
["timestamp","ask_amount","ask_price","bid_price","bid_amount"]
[1724888413934,0.99799,59276.0,59275.0,0.01899049]
[1724888414391,0.99799,59276.0,59275.0,0.01419177]
[1724888414604,1.335394,59276.0,59275.0,0.01419177]
[1724888414822,1.335394,59276.0,59275.0,0.02819177]
[1724888414823,1.435394,59276.0,59275.0,0.02819177]
[1724888415049,1.435394,59276.0,59275.0,0.01419177]
[1724888415269,1.435394,59276.0,59275.0,0.00019177]
[1724888415490,1.435394,59276.0,59275.0,0.02819177]
[1724888415707,1.4416419,59276.0,59275.0,0.02819177]
[1724888415972,1.4416419,59276.0,59275.0,0.00019177]
[1724888416185,1.4416419,59276.0,59275.0,0.01419177]
[1724888417270,1.4416419,59276.0,59275.0,0.02819177]
[1724888419637,0.10818,59276.0,59275.0,0.05119177]
[1724888419855,0.276882,59276.0,59275.0,0.06998549]
[1724888420525,0.276882,59276.0,59275.0,0.05598549]
[1724888420745,0.276882,59276.0,59275.0,0.06998549]
[1724888420953,0.276882,59276.0,59275.0,0.05598549]
[1724888421403,0.30333054,59276.0,59275.0,0.06998549]
[1724888421627,0.30333054,59276.0,59275.0,0.05498549]
[1724888422073,0.30333054,59276.0,59275.0,0.06898549]
[1724888422282,0.97813854,59276.0,59275.0,0.04679372]
[1724888422543,0.97813854,59276.0,59275.0,0.06079372]
[1724888422760,1.45904254,59276.0,59275.0,0.06079372]
[1724888423181,1.45904254,59276.0,59275.0,0.042]
[1724888423859,1.45904254,59276.0,59275.0,0.014]
[1724888424279,1.45904254,59276.0,59275.0,0.028]
[1724888424486,1.45904254,59276.0,59275.0,0.014]
[1724888424689,1.45904254,59276.0,59275.0,0.028]
[1724888424899,1.45904254,59276.0,59275.0,0.0288987]
[1724888429483,1.79644654,59276.0,59275.0,0.0288987]
[1724888430116,1.769998,59276.0,59275.0,0.0288987]
[1724888430307,1.432594,59276.0,59275.0,0.0288987]
[1724888430534,1.432594,59276.0,59275.0,0.0148987]
[1724888430743,1.432594,59276.0,59275.0,0.0008987]
[1724888430952,1.432594,59276.0,59275.0,0.0288987]
[1724888432028,1.769998,59276.0,59275.0,0.0288987]
[1724888433313,1.79644842,59276.0,59275.0,0.0288987]
[1724888433970,1.79644842,59276.0,59275.0,0.0148987]
[1724888434196,1.79644842,59276.0,59275.0,0.0128987]
[1724888434417,2.13385242,59276.0,59275.0,0.0208987]
[1724888434643,2.13385242,59276.0,59275.0,0.0088987]
[1724888434861,1.79644842,59276.0,59275.0,0.0008987]
[1724888435064,2.13385242,59276.0,59275.0,0.0128987]
[1724888435290,1.79644842,59276.0,59275.0,0.0128987]
[1724888435960,1.79644842,59276.0,59275.0,0.0068987]
[1724888436381,2.107402,59276.0,59275.0,0.0068987]
[1724888436631,2.107402,59276.0,59275.0,0.0008987]
[1724888437048,2.107402,59276.0,59275.0,0.0038987]
[1724888437466,2.107402,59276.0,59275.0,0.0058987]
[1724888439900,2.13385338,59276.0,59275.0,0.0058987]
[1724888442095,1.79644938,59276.0,59275.0,0.0058987]
[1724888443515,1.769998,59276.0,59275.0,0.0058987]
[1724888444132,1.88834219,59276.0,59275.0,0.0058987]
[1724888445289,1.74484219,59276.0,59275.0,0.0058987]
[1724888446191,1.626498,59276.0,59275.0,0.0058987]
[1724888449828,1.65294814,59276.0,59275.0,0.0058987]
[1724888453322,1.626498,59276.0,59275.0,0.0058987]
[1724888455844,1.289094,59276.0,59275.0,0.0885987]
[1724888456258,1.289094,59276.0,59275.0,0.1515987]
[1724888456670,1.31554349,59276.0,59275.0,0.1515987]
[1724888459687,1.289094,59276.0,59275.0,0.1515987]
[1724888462339,1.289094,59276.0,59275.0,0.0058987]
[1724888462340,1.92229774,59276.0,59275.0,0.0058987]
[1724888462981,1.94874772,59276.0,59275.0,0.0058987]
[1724888463394,1.92229774,59276.0,59275.0,0.0058987]
[1724888465107,1.626498,59276.0,59275.0,0.0038987]
[1724888465535,1.626498,59276.0,59275.0,0.0058987]
[1724888465951,1.626498,59276.0,59275.0,0.0038987]
[1724888466193,1.74481576,59276.0,59275.0,0.0038987]
[1724888466394,1.74481576,59276.0,59275.0,0.0008987]
[1724888466598,1.74481576,59276.0,59275.0,0.0108987]
[1724888467224,1.74481576,59276.0,59275.0,0.0138987]
[1724888468066,1.74481576,59276.0,59275.0,0.0108987]
[1724888468276,1.74481576,59276.0,59275.0,0.0198987]
[1724888474136,0.95169,59276.0,59275.0,0.1627987]
[1724888474784,0.95169,59276.0,59275.0,0.17480829]
[1724888474994,0.95169,59276.0,59275.0,0.1537987]
[1724888475203,0.95169,59276.0,59275.0,0.1647987]
[1724888475414,0.95169,59276.0,59275.0,0.1547987]
[1724888475630,0.95169,59276.0,59275.0,0.1667987]
[1724888476082,0.95169,59276.0,59275.0,0.18780807]
[1724888476745,0.614286,59276.0,59275.0,0.21080807]
[1724888478649,0.64073414,59276.0,59275.0,0.21080807]
[1724888479696,0.30333014,59276.0,59275.0,0.21080807]
[1724888479838,0.64073414,59276.0,59275.0,0.21080807]
[1724888481243,0.30333014,59276.0,59275.0,0.21080807]
[1724888481444,0.13462814,59276.0,59275.0,0.37951307]
[1724888481663,0.03462814,59276.0,59275.0,0.37951307]
[1724888481852,0.03462814,59276.0,59275.0,0.71692307]
[1724888482047,0.03462814,59276.0,59275.0,1.05433307]
[1724888482311,0.03462814,59276.0,59275.0,1.05933307]
[1724888482480,0.03462814,59276.0,59275.0,1.04733307]
[1724888482802,0.03462814,59276.0,59275.0,1.06133307]
[1724888483141,0.03462814,59276.0,59275.0,1.05033307]
[1724888483350,0.03462814,59276.0,59275.0,0.72192307]
[1724888483588,0.20333014,59276.0,59275.0,0.21580807]
[1724888483828,0.514286,59276.0,59275.0,0.21580807]
[1724888484025,0.85169,59276.0,59275.0,0.20180807]
[1724888484154,1.30741176,59276.0,59275.0,0.04990807]
[1724888484354,1.40741176,59276.0,59275.0,0.04990807]
[1724888484555,1.48721176,59276.0,59275.0,0.0288987]
[1724888484959,1.48721176,59276.0,59275.0,0.0148987]
[1724888485161,1.289094,59276.0,59275.0,0.0148987]
[1724888485365,1.289094,59276.0,59275.0,0.0288987]
[1724888485366,1.40741176,59276.0,59275.0,0.0288987]
[1724888485590,1.40741176,59276.0,59275.0,0.0148987]
[1724888485817,1.40741176,59276.0,59275.0,0.0168987]
[1724888486022,1.289094,59276.0,59275.0,0.0168987]
[1724888486175,1.289094,59276.0,59275.0,0.0008987]
[1724888486385,1.289094,59276.0,59275.0,0.0168987]
[1724888486789,1.289094,59276.0,59275.0,0.0148987]
[1724888486994,1.289094,59276.0,59275.0,0.0008987]
[1724888487194,1.370694,59276.0,59275.0,0.0008987]
[1724888487432,1.370694,59276.0,59275.0,0.0078987]
[1724888487433,1.708098,59276.0,59275.0,0.0078987]
[1724888487639,1.768898,59276.0,59275.0,0.0078987]
[1724888488046,1.768898,59276.0,59275.0,0.0118987]
[1724888488256,1.626498,59276.0,59275.0,0.0078987]
[1724888488679,1.626498,59276.0,59275.0,0.0158987]
[1724888489100,1.65294728,59276.0,59275.0,0.0158987]
[1724888492630,1.67172419,59276.0,59275.0,0.0158987]
[1724888493459,1.67254219,59276.0,59275.0,0.0158987]
[1724888497382,1.64609291,59276.0,59275.0,0.0158987]
[1724888500678,1.67254215,59276.0,59275.0,0.0158987]
[1724888503485,1.64609291,59276.0,59275.0,0.0158987]
[1724888505383,1.30868891,59276.0,59275.0,0.0158987]
[1724888506056,1.42700077,59276.0,59275.0,0.0158987]
[1724888506625,1.45345,59276.0,59275.0,0.0158987]
[1724888509433,1.42700077,59276.0,59275.0,0.0158987]
[1724888512862,1.45344999,59276.0,59275.0,0.0158987]
[1724888516425,1.42700077,59276.0,59275.0,0.0158987]
[1724888519645,1.45345011,59276.0,59275.0,0.0158987]
[1724888522628,1.42700077,59276.0,59275.0,0.0158987]
[1724888526014,1.45345008,59276.0,59275.0,0.0158987]
[1724888528646,1.42700077,59276.0,59275.0,0.0158987]
[1724888532077,1.45345007,59276.0,59275.0,0.0158987]
[1724888534392,1.93415407,59276.0,59275.0,0.0158987]
[1724888534831,2.27155807,59276.0,59275.0,0.0158987]
[1724888535050,2.24510877,59276.0,59275.0,0.0158987]
[1724888538446,2.27155934,59276.0,59275.0,0.0158987]
[1724888542710,2.07590043,59276.0,59275.0,0.0158987]
[1724888543164,2.24460243,59276.0,59275.0,0.0158987]
[1724888543317,1.64558657,59276.0,59275.0,0.0761987]
[1724888543519,1.76389843,59276.0,59275.0,0.0761987]
[1724888544192,1.73744786,59276.0,59275.0,0.0158987]
[1724888544852,1.619136,59276.0,59275.0,0.0918987]
[1724888547363,1.64558612,59276.0,59275.0,0.0918987]
[1724888551131,1.64558612,59276.0,59275.0,0.0158987]
[1724888553477,1.619136,59276.0,59275.0,0.0158987]
[1724888559096,1.763336,59276.0,59275.0,0.0158987]
[1724888559752,2.10074,59276.0,59275.0,0.0158987]
[1724888559949,2.12719097,59276.0,59275.0,0.0158987]
[1724888561476,1.72728697,59276.0,59275.0,0.0158987]
[1724888561687,1.64558697,59276.0,59275.0,0.0158987]
[1724888563631,1.619136,59276.0,59275.0,0.0158987]
[1724888563836,1.95654,59276.0,59275.0,0.0158987]
[1724888564055,1.619136,59276.0,59275.0,0.0158987]
[1724888569832,1.64558716,59276.0,59275.0,0.0158987]
[1724888570985,1.98299116,59276.0,59275.0,0.0158987]
[1724888573427,1.95654,59276.0,59275.0,0.0158987]
[1724888579813,1.9829915,59276.0,59275.0,0.0158987]
[1724888581342,1.6455875,59276.0,59275.0,0.0936987]
[1724888581958,1.9829915,59276.0,59275.0,0.0936987]
[1724888583222,1.9829915,59276.0,59275.0,0.0158987]
[1724888583422,1.95654,59276.0,59275.0,0.0158987]
[1724888587078,1.619136,59276.0,59275.0,0.0937987]
[1724888587290,1.619136,59276.0,59275.0,0.1541987]
[1724888587503,1.73744786,59276.0,59275.0,0.1541987]
[1724888589994,1.76389917,59276.0,59275.0,0.1541987]
[1724888590200,1.64558731,59276.0,59275.0,0.1541987]
[1724888590655,0.87077931,59276.0,59275.0,0.1541987]
[1724888590877,0.87077931,59276.0,59275.0,0.1771987]
[1724888590878,0.53337531,59276.0,59275.0,0.1771987]
[1724888591094,0.53337531,59276.0,59275.0,0.19821594]
[1724888591558,0.00818,59277.0,59275.0,0.06491594]
[1724888591762,0.00818,59277.0,59276.0,0.29148542]
[1724888591991,0.00818,59277.0,59276.0,0.29011186]
[1724888592195,0.00818,59277.0,59276.0,0.30912101]
[1724888592415,0.00818,59277.0,59276.0,0.19080915]
[1724888592623,0.00818,59277.0,59276.0,0.30912101]
[1724888592831,0.851675,59277.0,59276.0,0.16780915]
[1724888593045,0.514277,59277.0,59276.0,0.20480915]
[1724888593268,0.514277,59277.0,59276.0,0.1838]
[1724888593472,0.514277,59277.0,59276.0,0.20480212]
[1724888593682,0.514277,59277.0,59276.0,0.19080212]
[1724888594978,0.514277,59277.0,59276.0,0.20480212]
[1724888595942,0.514277,59277.0,59276.0,0.21880212]
[1724888597598,0.514277,59277.0,59276.0,0.33711398]
[1724888599326,0.54072406,59277.0,59276.0,0.33711398]
[1724888601223,0.20332606,59277.0,59276.0,0.33711398]
[1724888601435,0.20332606,59277.0,59276.0,0.21880212]
[1724888601823,0.20332606,59277.0,59276.0,0.28642912]
[1724888601824,0.03462706,59277.0,59276.0,0.28642912]
[1724888602061,0.20332606,59277.0,59276.0,0.28642912]
[1724888607970,0.54072406,59277.0,59276.0,0.28642912]
[1724888609136,0.54072406,59277.0,59276.0,0.28732892]
[1724888609864,0.20332606,59277.0,59276.0,0.28732892]
[1724888611597,0.176879,59277.0,59276.0,0.28732892]
[1724888612235,0.514277,59277.0,59276.0,0.28732892]
[1724888612457,0.176879,59277.0,59276.0,0.28732892]
[1724888619357,0.514277,59277.0,59276.0,0.28732892]
[1724888620950,0.54072368,59277.0,59276.0,0.28732892]
[1724888621845,0.23192314,59277.0,59276.0,0.28732892]
[1724888622994,0.56932114,59277.0,59276.0,0.28732892]
[1724888623841,0.54287446,59277.0,59276.0,0.28732892]
[1724888629057,0.20547646,59277.0,59276.0,0.28732892]
[1724888629472,0.54287446,59277.0,59276.0,0.28732892]
[1724888629917,0.54287446,59277.0,59276.0,0.27332892]
[1724888630346,0.56932117,59277.0,59276.0,0.28732892]
[1724888630771,0.56932117,59277.0,59276.0,0.27332892]
[1724888631200,0.56932117,59277.0,59276.0,0.14052892]
[1724888632066,0.90671917,59277.0,59276.0,0.07290192]
[1724888632728,1.24411717,59277.0,59276.0,0.0288998]
[1724888632942,1.24493517,59277.0,59276.0,0.0288998]
[1724888633422,1.21848846,59277.0,59276.0,0.0288998]
[1724888635728,1.21848846,59277.0,59276.0,0.04988266]
[1724888636784,1.24493599,59277.0,59276.0,0.04988266]
[1724888639463,1.21848846,59277.0,59276.0,0.04988266]
[1724888639910,0.94383436,59277.0,59276.0,0.04988266]
[1724888640956,1.11253336,59277.0,59276.0,0.04988266]
[1724888641808,1.11253336,59277.0,59276.0,0.12948266]
[1724888642031,0.77513536,59277.0,59276.0,0.1718998]
[1724888642495,0.77513536,59277.0,59276.0,0.19288556]
[1724888642693,0.77513536,59277.0,59276.0,0.12948556]
[1724888642923,0.80158289,59277.0,59276.0,0.1084998]
[1724888643497,0.77513536,59277.0,59276.0,0.1084998]
[1724888647911,0.506915,59277.0,59276.0,0.31211166]
[1724888648126,0.169517,59277.0,59276.0,0.31211166]
[1724888648349,0.169517,59277.0,59276.0,0.33309997]
[1724888648568,0.000818,59277.0,59276.0,0.33309997]
[1724888648995,0.169517,59277.0,59276.0,0.21478811]
[1724888649211,0.337388,59279.0,59277.0,0.143]
[1724888649421,0.506081,59279.0,59278.0,0.0997]
[1724888649658,0.606081,59279.0,59278.0,0.12068256]
[1724888649839,0.63252777,59279.0,59278.0,0.12068256]
[1724888651303,0.29513977,59279.0,59278.0,0.14868256]
[1724888651527,0.63252777,59279.0,59278.0,0.14868256]
[1724888652164,0.29513977,59279.0,59278.0,0.14868256]
[1724888653468,0.268693,59279.0,59278.0,0.14868256]
[1724888655387,0.268693,59279.0,59278.0,0.12568256]
[1724888655603,0.268693,59279.0,59278.0,0.14868256]
[1724888656701,0.2951397,59279.0,59278.0,0.14868256]
[1724888657365,0.2959577,59279.0,59278.0,0.14868256]
[1724888659521,0.269511,59279.0,59278.0,0.14868256]
[1724888659976,0.606898,59279.0,59278.0,0.14868256]
[1724888662630,0.100818,59279.0,59278.0,0.21338256]
[1724888662835,0.000818,59279.0,59278.0,1.44160039]
[1724888663051,0.000818,59279.0,59278.0,1.8286678]
[1724888663268,0.000818,59279.0,59278.0,1.99712857]
[1724888663754,0.000818,59279.0,59278.0,1.98312857]
[1724888664017,0.000818,59279.0,59278.0,2.10970797]
[1724888664267,0.000818,59279.0,59278.0,1.57132451]
[1724888664476,0.000818,59279.0,59278.0,1.4420566]
[1724888664896,0.000818,59279.0,59278.0,1.4560566]
[1724888665155,0.000818,59279.0,59278.0,1.4420566]
[1724888665606,0.000818,59279.0,59278.0,1.53200109]
[1724888665817,0.000818,59279.0,59278.0,1.54600109]
[1724888666243,0.000818,59279.0,59278.0,1.53200109]
[1724888667116,0.000818,59279.0,59278.0,1.54600109]
[1724888667336,0.000818,59279.0,59278.0,1.54598494]
[1724888667563,0.000818,59279.0,59278.0,1.55997921]
[1724888667787,0.000818,59279.0,59278.0,1.48404592]
[1724888668682,0.000818,59279.0,59278.0,1.55997372]
[1724888668900,0.000818,59279.0,59278.0,1.48694572]
[1724888669534,0.000818,59279.0,59278.0,1.60325758]
[1724888669742,0.000818,59279.0,59278.0,1.60324711]
[1724888670458,0.000818,59279.0,59278.0,1.57524711]
[1724888670691,0.000818,59279.0,59278.0,1.59124711]
[1724888670906,0.000818,59279.0,59278.0,1.63916343]
[1724888671126,0.000818,59279.0,59278.0,1.63716343]
[1724888671332,0.000818,59279.0,59278.0,1.65116343]
[1724888671599,0.000818,59279.0,59278.0,1.27682254]
[1724888672008,0.000818,59279.0,59278.0,1.20090622]
[1724888672442,0.000818,59279.0,59278.0,0.2278913]
[1724888672655,0.169511,59279.0,59278.0,0.2278913]
[1724888672866,0.169511,59279.0,59278.0,0.2418913]
[1724888673076,0.000818,59279.0,59278.0,0.2418913]
[1724888673291,0.000818,59279.0,59278.0,0.2278913]
[1724888673544,0.000818,59279.0,59278.0,0.85566588]
[1724888673765,0.000818,59279.0,59278.0,1.17607622]
[1724888674441,0.000818,59279.0,59278.0,1.17807622]
[1724888674661,0.000818,59279.0,59278.0,1.23999254]
[1724888674877,0.000818,59279.0,59278.0,1.62833882]
[1724888675094,0.000818,59279.0,59278.0,1.61433882]
[1724888675310,0.000818,59279.0,59278.0,1.60033882]
[1724888675565,0.000818,59279.0,59278.0,1.23999254]
[1724888675794,0.000818,59279.0,59278.0,1.25399254]
[1724888676019,0.000818,59279.0,59278.0,1.25199254]
[1724888676239,0.000818,59279.0,59278.0,1.24299254]
[1724888676670,0.000818,59279.0,59278.0,1.25699254]
[1724888676903,0.02726084,59279.0,59278.0,1.25899254]
[1724888677946,0.02726084,59279.0,59278.0,1.18307622]
[1724888679440,0.337317,59292.0,59283.0,0.0773]
[1724888679441,0.33733,59289.0,59283.0,0.0773]
[1724888679653,0.168669,59288.0,59284.0,0.191679]
[1724888679872,0.168669,59288.0,59284.0,0.27661859]
[1724888680318,0.16867,59288.0,59284.0,0.27661859]
[1724888680532,0.337317,59292.0,59284.0,0.27661859]
[1724888680726,0.05575935,59312.0,59284.0,0.27661859]
[1724888680727,0.337319,59291.0,59284.0,0.27661859]
[1724888680935,0.16867,59288.0,59284.0,0.29061859]
[1724888681878,0.16867,59288.0,59284.0,0.27661859]
[1724888682496,0.337319,59291.0,59285.0,0.168676]
[1724888682700,0.402012,59293.0,59286.0,0.023]
[1724888682701,0.168666,59289.0,59286.0,0.023]
[1724888682917,0.1829,59294.0,59286.0,0.023]
[1724888682918,0.02644244,59288.0,59287.0,0.246271]
[1724888683135,0.02644244,59288.0,59287.0,0.58698505]
[1724888683345,0.02644244,59288.0,59287.0,0.606612]
[1724888683561,0.02644244,59288.0,59287.0,0.62754226]
[1724888683769,0.02644244,59288.0,59287.0,0.29020126]
[1724888683955,0.02644244,59288.0,59287.0,0.62754326]
[1724888684209,0.02644244,59288.0,59287.0,0.65554326]
[1724888684449,0.1,59293.0,59289.0,0.168664]
[1724888684696,0.268654,59293.0,59290.0,0.023]
[1724888684927,0.1,59293.0,59290.0,0.04392163]
[1724888685361,0.1,59293.0,59291.0,0.0624]
[1724888685637,0.268655,59293.0,59291.0,0.02091876]
[1724888685852,0.168656,59292.0,59291.0,0.02091876]
[1724888686083,0.1,59293.0,59291.0,0.04391876]
[1724888686542,0.1,59293.0,59292.0,0.023]
[1724888686952,0.1,59293.0,59292.0,0.04391589]
[1724888687623,0.1,59294.0,59292.0,0.04391589]
[1724888688063,0.1,59294.0,59292.0,0.05791589]
[1724888688288,0.268652,59294.0,59292.0,0.05791589]
[1724888688915,0.268652,59294.0,59292.0,0.07191589]
[1724888689120,0.29509257,59294.0,59292.0,0.07191589]
[1724888689329,0.29509257,59294.0,59292.0,0.05791589]
[1724888689747,0.29509257,59294.0,59292.0,0.07191589]
[1724888689953,0.29509257,59294.0,59292.0,0.05791589]
[1724888690157,0.29509257,59294.0,59292.0,0.07191589]
[1724888692254,0.12644057,59294.0,59293.0,0.1387]
[1724888692459,0.02644057,59294.0,59293.0,0.0769]
[1724888692660,0.12644057,59294.0,59293.0,0.09781069]
[1724888692865,0.12725857,59294.0,59293.0,0.09781069]
[1724888693071,0.12725857,59294.0,59293.0,0.02091069]
[1724888693454,0.269469,59294.0,59292.0,0.023]
[1724888693655,0.269469,59294.0,59293.0,0.04890865]
[1724888693881,0.100818,59294.0,59293.0,0.04890865]
[1724888694423,0.100818,59294.0,59293.0,0.02090865]
[1724888694662,0.100818,59294.0,59292.0,0.051]
[1724888694885,0.100818,59294.0,59293.0,0.18956165]
[1724888695084,0.100818,59294.0,59293.0,0.02090865]
[1724888695486,0.100818,59294.0,59292.0,0.219656]
[1724888695686,0.1,59293.0,59292.0,0.219656]
[1724888695885,0.1,59293.0,59292.0,0.75648086]
[1724888696115,0.000818,59294.0,59293.0,0.65206]
[1724888696315,0.000818,59294.0,59293.0,1.012367]
[1724888696515,0.000818,59294.0,59293.0,1.026367]
[1724888696930,0.000818,59294.0,59293.0,1.70523563]
[1724888697113,0.0004,59299.0,59298.0,1.12260886]
[1724888697313,0.0004,59299.0,59298.0,1.51671786]
[1724888697556,0.0004,59299.0,59298.0,1.89291123]
[1724888699444,0.0004,59299.0,59298.0,1.9938418]
[1724888699657,0.0004,59299.0,59298.0,2.0078418]
[1724888699911,0.0004,59299.0,59298.0,2.70152995]
[1724888700128,0.0004,59299.0,59298.0,0.40220612]
[1724888700351,0.11871186,59299.0,59298.0,0.028]
[1724888700846,0.0004,59299.0,59298.0,0.014]
[1724888701070,0.0004,59299.0,59298.0,0.028]
[1724888701071,0.0268357,59299.0,59298.0,0.028]
[1724888701520,0.0268357,59299.0,59298.0,0.63489791]
[1724888701753,0.0268357,59299.0,59298.0,1.23676768]
[1724888701970,0.0268357,59299.0,59298.0,1.6245131]
[1724888702195,0.0268357,59299.0,59298.0,1.57404668]
[1724888702405,0.0268357,59299.0,59298.0,1.58304668]
[1724888702622,0.0268357,59299.0,59298.0,1.59704668]
[1724888703076,0.0268357,59299.0,59298.0,1.58304668]
[1724888703513,0.0268357,59299.0,59298.0,1.59704668]
[1724888703716,0.0268357,59299.0,59298.0,1.61104668]
[1724888704134,0.0268357,59299.0,59298.0,1.59704668]
[1724888704344,0.0268357,59299.0,59298.0,1.61104668]
[1724888704806,0.0276537,59299.0,59298.0,1.07147691]
[1724888705052,0.0276537,59299.0,59298.0,0.71919791]
[1724888705262,0.2785897,59299.0,59298.0,0.04887991]
[1724888705480,0.0276537,59299.0,59298.0,0.29801891]
[1724888705700,0.0276537,59299.0,59298.0,0.614418]
[1724888705948,0.0276537,59299.0,59298.0,0.69628644]
[1724888706157,0.0276537,59299.0,59298.0,0.35900744]
[1724888706365,0.0276537,59299.0,59298.0,0.69628644]
[1724888706582,0.0276537,59299.0,59298.0,0.17636844]
[1724888706786,0.0276537,59299.0,59298.0,0.18536844]
[1724888707210,0.0276537,59299.0,59298.0,1.04156544]
[1724888707421,0.0276537,59299.0,59298.0,1.04556544]
[1724888707838,0.0276537,59299.0,59298.0,1.05956544]
[1724888708471,0.0276537,59299.0,59298.0,1.04556544]
[1724888708886,0.0276537,59299.0,59298.0,1.04756544]
[1724888709103,0.0276537,59299.0,59298.0,0.70528644]
[1724888709305,0.1962897,59299.0,59298.0,0.07186844]
[1724888709513,0.0276537,59299.0,59298.0,0.07186844]
[1724888709772,0.0276537,59299.0,59298.0,0.05786844]
[1724888710638,0.0276537,59299.0,59298.0,0.07186844]
[1724888711108,0.1962897,59299.0,59298.0,0.07186844]
[1724888711341,1.0141357,59299.0,59298.0,0.04886844]
[1724888711560,1.0141357,59299.0,59298.0,0.028]
[1724888711778,1.3514087,59299.0,59298.0,0.028]
[1724888711986,1.324973,59299.0,59298.0,0.028]
[1724888712199,1.662246,59299.0,59298.0,0.014]
[1724888712421,1.762246,59299.0,59298.0,0.014]
[1724888712637,0.920212,59290.0,59288.0,0.4768]
[1724888713072,1.257537,59290.0,59288.0,0.4768]
[1724888713300,0.0769,59295.0,59288.0,0.4768]
[1724888713744,0.337285,59298.0,59290.0,0.00337292]
[1724888713991,0.001218,59299.0,59290.0,0.0634]
[1724888714253,0.001218,59299.0,59289.0,0.0148998]
[1724888714470,0.168662,59290.0,59289.0,0.0008998]
[1724888714674,0.168662,59290.0,59289.0,0.0238998]
[1724888714894,0.168662,59290.0,59289.0,0.0378998]
[1724888715150,0.168658,59292.0,59289.0,0.0238998]
[1724888715373,0.437269,59300.0,59289.0,0.0238998]
[1724888715374,0.337269,59300.0,59293.0,0.337307]
[1724888715595,0.337269,59300.0,59294.0,0.023]
[1724888715813,0.337269,59300.0,59295.0,0.168647]
[1724888715814,0.505904,59300.0,59295.0,0.168647]
[1724888716041,0.168631,59301.0,59297.0,0.168641]
[1724888716284,0.337241,59305.0,59298.0,0.191639]
[1724888716509,0.1,59304.0,59298.0,0.268239]
[1724888716737,0.168626,59303.0,59298.0,0.605518]
[1724888716962,0.168628,59302.0,59298.0,0.268239]
[1724888717192,0.268624,59304.0,59298.0,0.605518]
[1724888717669,0.168626,59303.0,59298.0,0.619518]
[1724888717878,0.168626,59303.0,59298.0,0.605518]
[1724888718103,0.168622,59305.0,59298.0,0.619518]
[1724888718327,0.168622,59305.0,59298.0,0.633518]
[1724888719339,0.168623,59304.0,59298.0,0.633518]
[1724888719584,0.168623,59304.0,59298.0,0.619518]
[1724888719837,0.168615,59307.0,59298.0,0.956797]
[1724888720306,0.168615,59307.0,59298.0,0.970797]
[1724888720511,0.16862,59305.0,59298.0,0.970797]
[1724888720719,0.16862,59305.0,59298.0,0.956797]
[1724888720924,0.16862,59305.0,59298.0,0.942797]
[1724888721160,0.168616,59307.0,59298.0,0.956797]
[1724888721371,0.02765253,59299.0,59298.0,0.970797]
[1724888721633,0.02765253,59299.0,59298.0,0.619518]
[1724888721878,0.02765253,59299.0,59298.0,0.633518]
[1724888722047,0.02765253,59299.0,59298.0,0.970797]
[1724888722505,0.02765253,59299.0,59298.0,0.956797]
[1724888722921,0.02765253,59299.0,59298.0,0.970797]
[1724888723329,0.02765253,59299.0,59298.0,0.942797]
[1724888723503,0.02765253,59299.0,59298.0,0.956797]
[1724888723739,0.02765253,59299.0,59298.0,0.970797]
[1724888723945,0.02765253,59299.0,59298.0,0.97767722]
[1724888724119,0.02765253,59299.0,59298.0,0.96367722]
[1724888724329,0.001218,59299.0,59298.0,1.30295622]
[1724888724532,0.001218,59299.0,59298.0,1.39675622]
[1724888724735,0.001218,59299.0,59298.0,1.44721773]
[1724888724984,0.001218,59299.0,59298.0,1.7426022]
[1724888725185,0.001218,59299.0,59298.0,1.69214069]
[1724888725421,0.001218,59299.0,59298.0,4.79838893]
[1724888725632,0.00818,59309.0,59308.0,1.32716947]
[1724888725879,0.00818,59309.0,59308.0,2.40419509]
[1724888726087,0.00818,59309.0,59308.0,2.42504659]
[1724888726317,0.00818,59309.0,59308.0,2.50270288]
[1724888726523,0.00818,59309.0,59308.0,2.5026805]
[1724888727377,0.00818,59309.0,59308.0,2.5026795]
[1724888727587,0.00818,59309.0,59308.0,2.89078174]
[1724888727787,0.00818,59309.0,59308.0,2.44104659]
[1724888729053,0.00818,59309.0,59308.0,2.42704659]
[1724888729277,0.00818,59309.0,59308.0,2.44104659]
[1724888729409,0.00818,59309.0,59308.0,2.49144622]
[1724888729617,0.00818,59309.0,59308.0,2.15222422]
[1724888729821,0.00818,59309.0,59308.0,1.80644012]
[1724888730223,0.00818,59309.0,59308.0,0.94053535]
[1724888730648,0.00818,59309.0,59308.0,0.93053535]
[1724888730850,0.00818,59309.0,59308.0,0.80060535]
[1724888731049,0.00818,59309.0,59308.0,0.73980535]
[1724888731424,0.00818,59309.0,59308.0,1.09202735]
[1724888731629,0.00818,59309.0,59308.0,0.78180535]
[1724888731839,0.00818,59309.0,59308.0,0.79180535]
[1724888732042,0.00818,59309.0,59308.0,1.14302735]
[1724888732693,0.00818,59309.0,59308.0,1.20782735]
[1724888732893,0.00818,59309.0,59308.0,1.22182735]
[1724888733378,0.00818,59309.0,59308.0,1.82374012]
[1724888733508,0.00818,59309.0,59308.0,1.82574012]
[1724888734930,0.00818,59309.0,59308.0,1.80974012]
[1724888735370,0.00818,59309.0,59308.0,1.82374012]
[1724888735823,0.00818,59309.0,59308.0,1.82574012]
[1724888736049,0.00818,59309.0,59308.0,1.47251812]
[1724888736504,0.00818,59309.0,59308.0,1.82374012]
[1724888736719,0.00818,59309.0,59308.0,1.80974012]
[1724888736927,0.00818,59309.0,59308.0,1.79574012]
[1724888737163,0.00818,59309.0,59308.0,1.82374012]
[1724888737374,0.00818,59309.0,59308.0,1.80974012]
[1724888737576,0.00818,59309.0,59308.0,1.82374012]
[1724888738000,0.00818,59309.0,59308.0,1.82574012]
[1724888738438,0.00818,59309.0,59308.0,1.82374012]
[1724888738861,0.00818,59309.0,59308.0,1.82574012]
[1724888739094,0.00818,59309.0,59308.0,1.48651812]
[1724888739519,0.00818,59309.0,59308.0,1.82374012]
[1724888739949,0.00818,59309.0,59308.0,1.80974012]
[1724888740162,0.00818,59309.0,59308.0,1.82374012]
[1724888740381,0.00818,59309.0,59308.0,1.11902735]
[1724888740618,0.00818,59309.0,59308.0,0.27097235]
[1724888740828,0.00818,59309.0,59308.0,0.28497235]
[1724888741262,0.00818,59309.0,59308.0,0.79080535]
[1724888741464,0.00818,59309.0,59308.0,0.43958335]
[1724888741712,0.00818,59309.0,59308.0,0.42558335]
[1724888741950,0.00818,59309.0,59308.0,0.79080535]
[1724888742366,0.00818,59309.0,59308.0,0.77680535]
[1724888742579,0.00818,59309.0,59308.0,0.79080535]